[Event "44th Chess Olympiad Open 2022"]
[Site "Chennai"]
[Date "2022.08.09"]
[Round "11.11"]
[White "Jumabayev, Rinat"]
[Black "Ganguly, Surya Shekhar"]
[Result "1-0"]
[ECO "A17"]
[WhiteElo "2617"]
[BlackElo "2608"]
[Annotator "TA"]
[PlyCount "95"]
[EventDate "2022.07.29"]
[EventType "team-tourn"]
[EventCountry "IND"]
[SourceTitle "playchess.com"]
[Source "ChessBase"]
[SourceQuality "1"]
[WhiteTeam "Kazakhstan"]
[BlackTeam "India"]
[WhiteTeamCountry "KAZ"]
[BlackTeamCountry "IND"]
[TimeControl "40/5400+30:1800+30"]

{[%evp 9,95,0,0,0,0,0,0,0,2,0,0,0,0,-9,0,0,0,3,27,16,60,63,54,52,94,91,107,75,58,56,62,42,43,41,47,28,22,26,44,39,67,58,70,20,125,109,189,192,195,193,194,145,149,170,152,66,91,70,51,50,97,0,587,587,587,552,1347,398,650,629,635,626,621,618,618,586,644,633,616,601,806,804,754,734,673,664,611,598]} 1. c4 {[%emt 0:00:06]} e6 {[%emt 0:00:36]} 2. Nf3 {[%emt 0:00:05]} Nf6 {[%emt 0:00:10]} 3. Nc3 {[%emt 0:00:06]} d5 {[%emt 0:00:10]} 4. e3 {[%emt 0:00:07]} b6 {[%emt 0:00:16]} 5. cxd5 {[%emt 0:00:06]} exd5 {[%emt 0:00:06]} 6. b3 {[%emt 0:00:08] A17: English Opening: 1...Nf6 with ...Bb4.} Bb7 {[%emt 0:00:29]} 7. Bb2 {[%emt 0:00:06]} Nbd7 {[%emt 0:00:06]} 8. Rc1 {[%emt 0:01:20] The position is equal.} a6 {[%emt 0:00:06]} 9. Ne2 {[%emt 0:04:36]} c5 {[%emt 0:00:13]} 10. Ng3 {[%emt 0:01:49]} g6 {[%emt 0:00:23]} 11. d4 {[%emt 0:01:54]} Bg7 {[%emt 0:00:34] [#]} 12. Be2 $146 {[%emt 0:00:11]} ({Predecessor:} 12. dxc5 bxc5 13. Be2 O-O 14. O-O Qe7 15. Qc2 Rac8 16. Rfd1 Rfd8 17. Qb1 Nf8 18. Qa1 {1-0 (35) Jacobson,B (2491)-Yoo,C (2457) Chess.com INT 2021}) 12... O-O {[%emt 0:01:48]} 13. Rc2 {[%emt 0:11:50]} Bc6 {[%emt 0:22:01]} 14. Qc1 {[%emt 0:06:15]} Bb5 {[%emt 0:03:16]} 15. O-O {[%emt 0:00:24]} Qb8 {[%emt 0:00:30]} 16. Rd1 {[%emt 0:01:36][%cal Rd4c5]} Qb7 {[%emt 0:02:35][%cal Oc5c4]} 17. dxc5 {[%emt 0:10:55]} bxc5 {[%emt 0:00:55]} 18. Bxf6 {[%emt 0:00:27]} Bxf6 {[%emt 0:01:37]} 19. Bxb5 {[%emt 0:00:13]} axb5 {[%emt 0:00:07]} 20. Rcd2 {[%emt 0:00:21]} d4 {[%emt 0:10:56]} 21. exd4 {[%emt 0:00:20]} cxd4 {[%emt 0:00:24]} 22. Qb1 {[%emt 0:02:08]} (22. Nxd4 Bg5 $15) 22... Nc5 {[%emt 0:01:49]} 23. Nxd4 {[%emt 0:00:23]} b4 {[%emt 0:00:57]} 24. Rc2 {[%emt 0:24:56]} Ra5 {[%emt 0:03:16]} 25. Rc4 {[%emt 0:07:56]} h5 {[%emt 0:06:28]} 26. h3 {[%emt 0:00:00]} (26. Qc2 $14 Bxd4 27. Rdxd4 (27. Rcxd4 Ne6 $14)) 26... Re8 {[%emt 0:01:59]} (26... Rfa8 $11 {remains equal.}) 27. Qc2 $16 {[%emt 0:03:29]} h4 {[%emt 0:14:05]} (27... Bxd4 $16 28. Rdxd4 (28. Rcxd4 Ne6 $16) 28... Ne6) 28. Nf1 $1 $18 {[%emt 0:01:57][%cal Bg3f1,Bf1e3,Be3g4,Bg4f6][%mdl 32]} (28. Rxc5 hxg3 29. Nf3 (29. Rxa5 Bxd4 30. Qd3 gxf2+ 31. Kf1 Qe7 $11) 29... Rxc5 30. Qxc5 Be7 $15) 28... Qb6 {[%emt 0:04:33]} 29. Ne3 {[%emt 0:05:36] Nd5 is the strong threat.} Rd8 {[%emt 0:03:32] Inhibits Nd5.} 30. Nf3 {[%emt 0:03:18]} ({White should try} 30. Ng4 $18 Ra7 31. Nxf6+ (31. Rxc5 Bxd4 32. Rc4 Rad7 $16) 31... Qxf6 32. Rxb4 (32. Rxc5 Rxd4 33. Rxd4 Qxd4 $14)) 30... Rxd1+ $16 {[%emt 0:05:48]} 31. Qxd1 {[%emt 0:00:11] Hoping for Nd5.} (31. Nxd1 $6 Qa7 $14) 31... Ne6 {[%emt 0:00:17]} (31... Rxa2 $2 32. Nd5 Qe6 33. Nxf6+ Qxf6 34. Rxc5 $18) 32. Rc2 {[%emt 0:05:02]} (32. Nxh4 $6 Rxa2 33. Nf3 Ra1 $14) (32. Nd5 $16 Qd8 33. Nxf6+ Qxf6 34. Qd2 (34. Rxb4 Rxa2 35. Ra4 Rb2 $16)) 32... Qb7 {[%emt 0:03:34]} 33. Ng4 {[%emt 0:05:03]} Bc3 {[%emt 0:01:23]} 34. Qc1 $36 {[%emt 0:00:54][%mdl 2048] White fights for an advantage.} Qa6 {[%emt 0:07:34]} (34... Qe7 $14) 35. Qh6 {[%emt 0:03:27]} (35. Nxh4 $2 Nd4 36. Rb2 (36. Nh6+ $2 Kg7 $19) 36... Qc6 $19) (35. Rxc3 $16 bxc3 36. Qxc3) 35... Qd3 $2 {[%emt 0:02:42][%mdl 8192] [#]} (35... Rxa2 36. Rxc3 $1 {[%mdl 512]} f5 37. Qxg6+ Ng7 38. Nh6+ Kh8 39. Rc6 Ra1+ 40. Kh2) (35... Qd6 $11 36. Rxc3 Qd1+ 37. Kh2 Qd6+ 38. Nfe5 Nc5 39. Rf3 f5 40. Rxf5 gxf5 41. Qxd6 Ra7 42. Qb8+ Kg7 43. Qxa7+ Nb7 44. Qxb7+ Kh8 45. Ng6+ Kg8 46. Nh6#) 36. Rxc3 $1 $18 {[%emt 0:00:10][%mdl 512]} Qxc3 {[%emt 0:00:03] [#]} 37. Nfe5 $1 {[%emt 0:00:05][%cal Rg4f6][%mdl 512]} Ng7 {[%emt 0:00:07] [#]} (37... Qxe5 38. Nxe5) 38. Nf6+ {[%emt 0:00:55]} (38. Qh7+ $142 $3 {[%mdl 512]} Kf8 39. Qh8+ Ke7 40. Qxh4+ (40. Qxg7 Qc1+ 41. Kh2 Qf4+ 42. g3 hxg3+ 43. Kg2 Ra6 $11) 40... Kf8 41. Qh8+ Ke7 42. Qxg7 Rxe5 43. Qf6+ (43. Nxe5 Qc1+ 44. Kh2 Qf4+ 45. g3 Qxf2+ 46. Kh1 Qe1+ 47. Kh2 Qf2+ 48. Kh1 Qe1+ 49. Kh2 Qf2+ $11) 43... Ke8 44. Nxe5 Qc1+ 45. Kh2) 38... Kf8 {[%emt 0:00:01] [#]} 39. Nfd7+ $1 {[%emt 0:00:20] Pair of Knights! White is clearly winning.} (39. Ned7+ Ke7 $11) 39... Ke7 {[%emt 0:02:02]} 40. Qxh4+ {[%emt 0:00:29]} ({Worse is} 40. Qxg7 Qc1+ 41. Kh2 Qf4+ 42. Kh1 (42. Kg1 Qc1+ 43. Kh2 Qf4+ 44. Kh1 Qc1+ 45. Kh2 $11) 42... Qc1+ 43. Kh2 Qf4+ 44. Kh1 (44. Kg1 Qc1+ 45. Kh2 $11) 44... Qc1+ 45. Kh2 $11) 40... Kd6 {[%emt 0:00:10] Threatens to win with ...Ne6.} 41. Qf6+ {[%emt 0:05:57]} Ne6 {[%emt 0:03:54]} 42. Nc4+ {[%emt 0:04:36]} Kxd7 {[%emt 0:01:47]} 43. Qxf7+ {[%emt 0:00:09]} Kd8 {[%emt 0:00:02][%cal Oa5a2]} 44. Nxa5 {[%emt 0:01:01] White threatens Nb7+ and mate.} Qe1+ {[%emt 0:00:27]} 45. Kh2 {[%emt 0:00:05]} Qe5+ {[%emt 0:00:02]} 46. f4 {[%emt 0:01:41]} Qd5 {[%emt 0:00:26]} 47. Nb7+ {[%emt 0:01:12]} Kc8 {[%emt 0:00:05] [#]} 48. Nc5 $1 {[%emt 0:00:11][%mdl 512] Weighted Error Value: White=0.21 (precise) /Black=0.40} 1-0

[Event "44th Chess Olympiad Open 2022"]
[Site "Chennai"]
[Date "2022.08.09"]
[Round "11.11"]
[White "Puranik, Abhimanyu"]
[Black "Nogerbek, Kazybek"]
[Result "1/2-1/2"]
[ECO "D02"]
[WhiteElo "2612"]
[BlackElo "2437"]
[Annotator "TA"]
[PlyCount "79"]
[EventDate "2022.07.29"]
[EventType "team-tourn"]
[EventCountry "IND"]
[SourceTitle "playchess.com"]
[Source "ChessBase"]
[SourceQuality "1"]
[WhiteTeam "India"]
[BlackTeam "Kazakhstan"]
[WhiteTeamCountry "IND"]
[BlackTeamCountry "KAZ"]
[TimeControl "40/5400+30:1800+30"]

{[%evp 11,79,31,23,16,35,27,37,23,30,33,30,33,45,41,77,73,83,89,108,39,38,54,42,51,45,47,47,44,50,50,45,50,50,54,66,39,39,0,0,0,0,-21,-20,-32,-27,-38,0,0,0,0,0,0,0,0,0,-59,-13,-14,-8,-11,0,0,0,0,0,0,0,0,0,0]} 1. Nf3 {[%emt 0:00:04]} d5 {[%emt 0:00:18]} 2. g3 {[%emt 0:00:04]} Nc6 {[%emt 0:00:30]} 3. d4 {[%emt 0:00:07]} Bf5 {[%emt 0:00:12]} 4. Bg2 {[%emt 0:00:15]} Nb4 {[%emt 0:00:26]} 5. Na3 {[%emt 0:00:05]} e6 {[%emt 0:00:13]} 6. O-O {[%emt 0:00:32]} Nf6 {[%emt 0:01:21]} 7. Bg5 {[%emt 0:01:48] D02: 1 d4 d5 2 Nf3 sidelines, including 2...Nf6 3 g3 and 2...Nf6 3 Bf4.} Be7 {[%emt 0:02:23]} 8. c3 {[%emt 0:03:03]} Nc6 {[%emt 0:00:53]} 9. Nd2 {[%emt 0:02:00] White is slightly better.} O-O {[%emt 0:04:37]} 10. Bxf6 {[%emt 0:00:15]} Bxf6 {[%emt 0:00:13] [#]} 11. e4 $146 {[%emt 0:00:09]} ({Predecessor:} 11. e3 a6 12. Re1 e5 13. Nb3 e4 14. c4 Nb4 15. Qd2 Nd3 16. Rf1 Be7 17. cxd5 Bxa3 18. bxa3 Qxd5 {0-1 (27) Jenkins,D-Ramirez,T IECG email 1995}) 11... dxe4 {[%emt 0:00:37]} 12. Nxe4 {[%emt 0:00:04]} Be7 {[%emt 0:03:59]} 13. Nc4 {[%emt 0:00:27]} Qc8 {[%emt 0:01:54]} 14. f4 {[%emt 0:01:48]} Nb8 {[%emt 0:03:38]} 15. Ne3 {[%emt 0:03:58] 0x0.001f24fa4fc1dp-1022s more active pieces.} ({White should play} 15. g4 $16 Bxe4 16. Bxe4) 15... Bxe4 {[%emt 0:02:40]} 16. Bxe4 {[%emt 0:00:05] Strongly threatening f5.} Nd7 $1 {[%emt 0:01:11]} 17. f5 {[%emt 0:17:09] [#] aiming for fxe6.} Nf6 {[%emt 0:04:07]} 18. Bc2 {[%emt 0:01:37]} c5 {[%emt 0:12:25]} 19. fxe6 {[%emt 0:03:40]} fxe6 {[%emt 0:05:04]} 20. Qd3 {[%emt 0:00:47][%cal Of1f6] And now Rxf6! would win.} cxd4 {[%emt 0:02:12]} 21. cxd4 {[%emt 0:07:32][%cal Of1f6]} (21. Qxd4 $2 Bc5 22. Qd3 Qd8 23. Rxf6 Bxe3+ 24. Qxe3 Rxf6 $19) 21... g6 {[%emt 0:06:09]} 22. Bb3 {[%emt 0:00:19]} Kh8 {[%emt 0:01:58]} 23. Rae1 {[%emt 0:05:33][%cal Ba1e1,Be1e7,Be7b7][%mdl 32]} Qd7 {[%emt 0:02:59]} 24. Bxe6 {[%emt 0:15:48]} Qxe6 {[%emt 0:00:17]} 25. Nf5 $1 {[%emt 0:00:03]} Qd7 {[%emt 0:05:59]} 26. Rxe7 {[%emt 0:09:56]} Qd8 {[%emt 0:00:37]} 27. Rxb7 {[%emt 0:03:50] [#] Threatens to win with Ne3.} gxf5 {[%emt 0:01:09]} 28. Rxf5 {[%emt 0:00:05]} Qc8 {[%emt 0:00:51]} 29. Re7 {[%emt 0:00:32][%cal Of5f6] Rxf6! is the strong threat.} Qc1+ {[%emt 0:07:29]} 30. Rf1 {[%emt 0:00:36]} Qh6 {[%emt 0:00:22]} 31. d5 {[%emt 0:01:54]} Rac8 {[%emt 0:15:23][%cal Of6d5]} ({Much less strong is} 31... Rad8 32. d6 $16) 32. Kg2 {[%emt 0:03:21]} Qg6 {[%emt 0:02:10]} 33. Rf5 {[%emt 0:04:24]} (33. Qxg6 $11 hxg6 34. Rxa7) 33... Ng8 {[%emt 0:01:04]} (33... Rce8 $15 34. d6 (34. Rxa7 Re5 $17) 34... Rxe7 35. dxe7 Re8) 34. Qd4+ $11 {[%emt 0:00:38] The position is equal.} Rf6 {[%emt 0:00:24]} 35. Rxf6 {[%emt 0:06:25] Chess con chili.} Qxf6 {[%emt 0:00:29]} 36. Qxf6+ {[%emt 0:00:06]} Nxf6 {[%emt 0:00:06]} 37. d6 {[%emt 0:00:48]} Rd8 {[%emt 0:01:26]} 38. Rxa7 {[%emt 0:00:20]} Rxd6 {[%emt 0:00:05]} 39. Rb7 {[%emt 0:00:07]} Rd2+ {[%emt 0:00:55]} 40. Kf3 {[%emt 0:00:40] Weighted Error Value: White=0.12 (very precise) /Black=0.07 (flawless)} 1/2-1/2

[Event "44th Chess Olympiad Open 2022"]
[Site "Chennai"]
[Date "2022.08.09"]
[Round "11.11"]
[White "Urazayev, Arystanbek"]
[Black "Karthikeyan, Murali"]
[Result "0-1"]
[ECO "C77"]
[WhiteElo "2430"]
[BlackElo "2613"]
[Annotator "TA"]
[PlyCount "144"]
[EventDate "2022.07.29"]
[EventType "team-tourn"]
[EventCountry "IND"]
[SourceTitle "playchess.com"]
[Source "ChessBase"]
[SourceQuality "1"]
[WhiteTeam "Kazakhstan"]
[BlackTeam "India"]
[WhiteTeamCountry "KAZ"]
[BlackTeamCountry "IND"]
[TimeControl "40/5400+30:1800+30"]

{[%evp 10,144,17,0,37,0,16,-2,0,-4,3,6,9,16,18,29,18,0,9,13,16,0,0,0,0,0,0,-12,-17,-27,-10,-13,-27,-29,0,-20,-20,-29,-16,-17,-22,-14,-9,-15,-14,-14,0,-58,-57,-68,-72,-67,-36,-52,-17,-6,0,0,0,0,0,0,0,0,0,0,0,0,0,0,0,0,0,0,0,0,0,-8,-8,-8,-8,-8,-8,-8,-8,-18,-8,-8,-8,-144,-174,-164,-164,-278,-278,-270,-180,-263,-178,-204,-80,-652,-672,-1737,-1700,-1813,-1793,-1729,-1709,-1548,-1153,-3313,-2571,-7572,-7572,-10768,-7558,-29965,-12116,-8,-8,-29978,-29980,-29980,-29981,-29981,-29982,-29982,-29983,-29983,-29984,-29984,-29985,-29985,-29986,-29986,-29987]} 1. e4 {[%emt 0:01:17]} e5 {[%emt 0:00:32]} 2. Nf3 {[%emt 0:01:30]} Nc6 {[%emt 0:00:05]} 3. Bb5 {[%emt 0:01:47]} a6 {[%emt 0:01:01]} 4. Ba4 {[%emt 0:00:06]} Nf6 {[%emt 0:00:16]} 5. d3 {[%emt 0:07:04]} Bc5 {[%emt 0:00:52]} 6. c3 {[%emt 0:01:37]} O-O {[%emt 0:00:26] C77: Ruy Lopez: 3...a6 4 Ba4 Nf6, unusual lines.} 7. O-O {[%emt 0:00:23]} (7. Bxc6 $5 bxc6 8. Nxe5 $11) 7... d5 {[%emt 0:02:42]} 8. Nbd2 {[%emt 0:04:01]} Re8 {[%emt 0:02:32] The position is equal.} 9. h3 {[%emt 0:02:20]} b5 $5 {[%emt 0:01:48][%mdl 4] A promising side line.} 10. Bc2 {[%emt 0:01:43]} h6 {[%emt 0:02:34]} 11. exd5 {[%emt 0:00:30]} Nxd5 {[%emt 0:19:40]} 12. Ne4 {[%emt 0:02:54] [#]} Bf8 $146 {[%emt 0:01:13]} ({Predecessor:} 12... Bb6 13. a4 Rb8 14. Ng3 f5 15. Re1 f4 16. Nh5 Bf5 17. d4 Bxc2 18. Qxc2 Qd6 19. axb5 axb5 {½-½ (36) Anokhin,Y (2427)-Schulz,K (2392) ICCF email 2019}) 13. Re1 {[%emt 0:00:48]} Be6 {[%emt 0:11:35]} 14. Ng3 {[%emt 0:01:51]} Bd6 {[%emt 0:03:36]} 15. d4 {[%emt 0:17:05]} exd4 {[%emt 0:01:10]} 16. Nxd4 {[%emt 0:00:44]} Nxd4 {[%emt 0:00:45]} 17. Qxd4 {[%emt 0:00:20]} c5 {[%emt 0:03:17]} 18. Qd3 {[%emt 0:05:16] Intending Qh7+ and mate.} Nf6 {[%emt 0:01:15] Against Qh7+. Active counter play!} 19. Be3 {[%emt 0:03:52]} Bc4 {[%emt 0:12:46]} 20. Qd1 {[%emt 0:03:18]} Qc7 {[%emt 0:07:45]} 21. Nf5 {[%emt 0:11:20]} Bh2+ {[%emt 0:02:22]} 22. Kh1 {[%emt 0:00:06]} Rad8 {[%emt 0:00:55]} 23. Qc1 {[%emt 0:01:47] [#] g3 is the strong threat.} Bf4 {[%emt 0:00:57]} 24. Bxf4 {[%emt 0:06:52]} Rxe1+ {[%emt 0:00:05]} 25. Qxe1 {[%emt 0:00:03]} Qxf4 {[%emt 0:00:05]} 26. Ne3 {[%emt 0:13:55]} Be6 {[%emt 0:07:30][%cal Bc4e6,Be6a2,Ba2d5][%mdl 32]} 27. Rd1 {[%emt 0:01:13]} Re8 {[%emt 0:02:34]} 28. Kg1 {[%emt 0:04:31]} (28. a3 $11) 28... Qg5 $15 {[%emt 0:03:33]} 29. Kh1 {[%emt 0:02:33]} Bxa2 {[%emt 0:01:47]} 30. Qd2 {[%emt 0:02:12] Prevents Nd5.} Qf4 {[%emt 0:08:45]} 31. Ra1 {[%emt 0:01:14] [#]} Bd5 {[%emt 0:01:01]} 32. Rxa6 {[%emt 0:00:21]} Qg5 {[%emt 0:00:28][%cal Od5g2]} 33. Rd6 {[%emt 0:01:30][%cal Re3d5]} Be4 {[%emt 0:00:32]} 34. Rd8 {[%emt 0:00:41]} Rxd8 {[%emt 0:00:33]} 35. Qxd8+ {[%emt 0:00:03]} Kh7 $1 {[%emt 0:00:05]} 36. Bxe4+ {[%emt 0:00:54]} Nxe4 {[%emt 0:00:01]} 37. Qxg5 {[%emt 0:00:21]} hxg5 $11 {[%emt 0:00:02][%mdl 4096] Endgame KN-KN} 38. Kg1 {[%emt 0:00:31]} Kg6 {[%emt 0:00:43]} 39. f3 {[%emt 0:00:09]} Nd6 {[%emt 0:00:26]} 40. Kf2 {[%emt 0:00:31]} Kf6 {[%emt 0:00:41]} 41. Ke2 {[%emt 0:02:58]} Ke5 {[%emt 0:00:42]} 42. b3 {[%emt 0:03:19]} Nb7 {[%emt 0:07:15] Threatens to win with ...Na5.} 43. Nf1 {[%emt 0:00:27]} b4 {[%emt 0:04:32]} 44. cxb4 {[%emt 0:12:19]} cxb4 {[%emt 0:00:02]} 45. Kd3 {[%emt 0:02:33]} Na5 {[%emt 0:00:25]} 46. Nd2 {[%emt 0:02:33]} Kd5 {[%emt 0:01:06]} 47. Ke3 {[%emt 0:02:31]} f6 {[%emt 0:03:57]} 48. Kd3 {[%emt 0:01:09]} f5 {[%emt 0:01:35] White should prevent ...f4.} 49. Ke3 {[%emt 0:02:41]} (49. g4 $11 {remains equal.}) 49... f4+ $1 $17 {[%emt 0:03:11]} 50. Kd3 {[%emt 0:00:22]} g6 $1 {[%emt 0:00:07]} 51. Kc2 {[%emt 0:01:21]} Kd4 {[%emt 0:06:57]} 52. Ne4 {[%emt 0:00:29]} Ke3 $1 {[%emt 0:00:13]} 53. Nxg5 {[%emt 0:00:48]} Nc6 $1 {[%emt 0:00:10] Strongly threatening ...Nd4+.} 54. Ne4 {[%emt 0:03:22]} ({Don't blunder} 54. Ne6 $2 Nd4+ 55. Nxd4 Kxd4 $19) 54... Nd4+ {[%emt 0:00:04][%mdl 1024] Black has strong compensation.} 55. Kb2 $2 {[%emt 0:00:05][%mdl 8192]} (55. Kd1 $17) 55... Nf5 $1 $19 {[%emt 0:01:02] aiming for ...Nh4.} 56. Nf6 {[%emt 0:00:29]} Kf2 {[%emt 0:00:25]} 57. Nd5 {[%emt 0:00:44]} g5 $1 {[%emt 0:00:06]} 58. Nxb4 {[%emt 0:01:31]} Kxg2 {[%emt 0:00:02]} 59. Nd3 {[%emt 0:00:16]} Kxf3 {[%emt 0:00:06] Hoping for ...Ke3.} 60. b4 {[%emt 0:00:40]} Ke3 {[%emt 0:06:06]} 61. Kc3 {[%emt 0:01:09]} Ne7 {[%emt 0:01:03]} 62. Ne5 {[%emt 0:00:00]} Nd5+ $1 {[%emt 0:00:54]} 63. Kc4 {[%emt 0:00:00] [#]} Nxb4 $1 {[%emt 0:00:17][%cal Of4f3][%mdl 512]} 64. Kxb4 {[%emt 0:00:35] KN-KPP} (64. Ng4+ Ke2) 64... f3 {[%emt 0:00:02] ( -> ...f2)} 65. Kc3 $2 {[%emt 0:00:53][%mdl 8192]} (65. Ng4+ $11 Ke2 66. Nf6) 65... f2 {[%emt 0:00:04] Black mates.} 66. Ng4+ {[%emt 0:00:27] [#]} Ke2 $1 {[%emt 0:00:08]} 67. Nh2 {[%emt 0:00:34]} f1=Q {[%emt 0:00:06]} 68. Nxf1 {[%emt 0:00:07]} Kxf1 {[%emt 0:00:04]} 69. Kd2 {[%emt 0:00:52]} Kg2 {[%emt 0:00:06]} 70. Ke2 {[%emt 0:00:23]} Kxh3 {[%emt 0:00:06]} 71. Kf2 {[%emt 0:00:20] [#]} g4 $1 {[%emt 0:00:04]} 72. Kg1 {[%emt 0:00:07]} Kg3 {[%emt 0:00:05] Weighted Error Value: White=0.36/Black=0.03 (flawless)} 0-1

[Event "44th Chess Olympiad Open 2022"]
[Site "Chennai"]
[Date "2022.08.09"]
[Round "11.12"]
[White "Nguyen, Thai Dai Van"]
[Black "Gazik, Viktor"]
[Result "1/2-1/2"]
[ECO "A30"]
[WhiteElo "2629"]
[BlackElo "2544"]
[Annotator "TA"]
[PlyCount "60"]
[EventDate "2022.07.29"]
[EventType "team-tourn"]
[EventCountry "IND"]
[SourceTitle "playchess.com"]
[Source "ChessBase"]
[SourceQuality "1"]
[WhiteTeam "Czech Republic"]
[BlackTeam "Slovakia"]
[WhiteTeamCountry "CZE"]
[BlackTeamCountry "SVK"]
[TimeControl "40/5400+30:1800+30"]

{[%evp 25,60,43,26,30,41,12,11,14,5,8,11,6,11,0,0,0,0,0,0,8,4,8,8,8,7,0,0,0,0,0,0,0,0,0,0,-29,0]} 1. Nf3 {[%emt 0:00:06]} Nf6 {[%emt 0:00:14]} 2. c4 {[%emt 0:00:09]} b6 {[%emt 0:01:10]} 3. g3 {[%emt 0:00:18]} Bb7 {[%emt 0:00:43]} 4. Bg2 {[%emt 0:00:13]} c5 {[%emt 0:03:50]} 5. O-O {[%emt 0:00:20]} e6 {[%emt 0:02:29]} 6. Nc3 {[%emt 0:03:40]} Be7 {[%emt 0:02:40]} 7. d4 {[%emt 0:03:53]} cxd4 {[%emt 0:01:36]} 8. Qxd4 {[%emt 0:00:11]} Nc6 {[%emt 0:15:45]} 9. Qf4 {[%emt 0:01:41]} O-O {[%emt 0:02:33]} 10. Rd1 {[%emt 0:01:27]} Qb8 {[%emt 0:14:42]} 11. Qxb8 {[%emt 0:31:14]} Raxb8 {[%emt 0:00:37]} 12. Bf4 {[%emt 0:00:11]} Rbc8 {[%emt 0:00:48]} 13. Ne5 {[%emt 0:10:20] is the legacy move (13.Rac1).} d6 {[%emt 0:01:48]} 14. Nxc6 {[%emt 0:00:14] A30: Symmetrical English: Double Fianchetto and Hedgehog.} (14. Nd3 {with more complications.} Rfd8 15. b3 Na5 16. e4) 14... Bxc6 {[%emt 0:00:04]} 15. Bxd6 {[%emt 0:00:53]} (15. e4 {seems wilder.} Rfd8 16. Rac1 h6 17. f3) 15... Bxd6 {[%emt 0:00:07]} 16. Rxd6 {[%emt 0:00:04] The position is equal.} Bxg2 {[%emt 0:00:05]} 17. Kxg2 {[%emt 0:00:04] Black should prevent b3.} Rxc4 {[%emt 0:00:05]} 18. Rad1 {[%emt 0:00:05]} g5 {[%emt 0:07:28]} 19. R1d4 {[%emt 0:04:43]} Rfc8 {[%emt 0:03:38] [#]} 20. e4 $146 {[%emt 0:01:03]} ({Predecessor:} 20. Rd8+ Kg7 21. Rxc4 Rxd8 22. Rc7 Rd7 23. Rxd7 Nxd7 {½-½ (23) Osnos,V-Gipslis,A Frunze 1973}) 20... b5 {[%emt 0:18:04]} 21. Nxb5 {[%emt 0:07:47]} Rc2 {[%emt 0:12:49]} 22. Nxa7 {[%emt 0:16:49]} Ra8 {[%emt 0:00:02]} 23. Nc6 {[%emt 0:00:23]} Rxb2 {[%emt 0:00:07]} 24. a4 {[%emt 0:01:01]} Ng4 {[%emt 0:03:56]} 25. Rd2 {[%emt 0:07:37]} (25. e5 {keeps more tension.} h5 26. h3 Ne3+ 27. Kf3) 25... Rxd2 {[%emt 0:00:06]} 26. Rxd2 {[%emt 0:00:02] [#] Threatens to win with Rd8+.} Rxa4 {[%emt 0:00:06]} 27. h3 {[%emt 0:02:01]} Nf6 {[%emt 0:00:52]} 28. f3 {[%emt 0:00:03]} Kg7 {[%emt 0:00:14]} 29. Ne5 {[%emt 0:00:06]} h5 {[%emt 0:00:33][%cal Bh7h5,Bh5g4][%mdl 32]} 30. g4 {[%emt 0:00:32]} hxg4 {[%emt 0:00:46] Weighted Error Value: White=0.06 (flawless) /Black=0.00 (flawless)} 1/2-1/2